bitfinex/quotes_ETHUSD_20250622
["timestamp","ask_amount","ask_price","bid_price","bid_amount"]
[1750616633171,1.374102,2187.8,2187.4,1.35059342]
[1750616633345,1.430602,2187.8,2187.4,1.35059342]
[1750616633660,10.0,2187.8,2187.5,4.57142042]
[1750616633861,1.373995,2187.9,2187.4,5.92212902]
[1750616634170,8.087,2188.1,2187.6,0.6125]
[1750616634463,10.75545922,2188.3,2187.8,5.12074997]
[1750616634464,1.373843,2188.3,2187.8,5.12074997]
[1750616634649,10.0,2188.2,2187.9,4.57058662]
[1750616634831,1.373843,2188.3,2188.2,4.56996618]
[1750616635031,0.8755,2189.5,2188.4,0.0625]
[1750616635281,9.465284,2189.4,2188.8,0.8016]
[1750616635445,10.0,2189.3,2188.8,0.8016]
[1750616635786,8.091,2189.5,2188.8,0.8641]
[1750616635950,0.0065,2189.6,2188.9,4.5683987]
[1750616636489,0.0065,2189.6,2189.0,4.56829272]
[1750616636655,2.336,2189.7,2189.1,5.48175052]
[1750616636998,2.336,2189.7,2189.1,0.91367707]
[1750616637284,10.0,2189.5,2189.1,4.63052673]
[1750616637485,10.0,2189.5,2188.8,3.1376]
[1750616637486,8.085,2189.6,2188.8,7.70624049]
[1750616637784,8.081,2190.1,2189.4,0.8016]
[1750616637968,10.0,2189.9,2189.4,0.8016]
[1750616638171,9.93645922,2190.0,2189.4,0.8016]
[1750616638483,8.087,2190.1,2189.6,4.62943814]
[1750616638679,10.0,2190.0,2189.7,4.56681565]
[1750616638979,10.0,2190.0,2189.6,0.0625]
[1750616639147,8.087,2190.1,2189.6,0.0625]
[1750616639581,10.0,2190.0,2189.6,4.629508]
[1750616639783,8.087,2190.1,2189.6,5.1638328]
[1750616639948,0.2254202,2190.2,2189.9,5.36790533]
[1750616640280,0.2254202,2190.2,2190.0,4.62866997]
[1750616640485,0.2254202,2190.2,2189.9,5.36791741]
[1750616640681,0.2254202,2190.2,2190.0,4.62870015]
[1750616640908,8.074,2190.1,2189.2,0.0625]
[1750616641116,10.0565,2189.9,2188.8,0.0625]
[1750616641411,10.0565,2189.1,2188.4,0.8062]
[1750616641621,10.0,2188.8,2188.4,5.37557869]
[1750616641910,0.0565,2188.8,2188.4,0.8062]
[1750616642114,0.0565,2188.8,2188.1,0.8062]
[1750616642806,0.05711189,2188.8,2188.1,5.43884291]
[1750616642979,0.7845,2189.0,2188.1,0.8687]
[1750616643188,10.0,2188.9,2188.2,4.56996618]
[1750616643383,10.0,2188.9,2188.3,5.11974548]
[1750616643998,10.0,2188.9,2188.2,5.1198603]
[1750616644170,10.0,2188.9,2188.3,1.0558658]
[1750616644369,2.335,2189.5,2188.3,1.0558658]
[1750616644370,0.7982,2189.3,2188.4,0.6125]
[1750616644577,10.0565,2189.4,2188.7,4.5688121]
[1750616644880,8.8922,2189.6,2188.8,0.55]
[1750616645085,10.0,2189.5,2188.9,4.56850365]
[1750616645286,20.91645922,2189.8,2189.1,4.56808253]
[1750616645482,3.1897,2189.9,2189.3,0.55]
[1750616645685,8.095,2189.7,2189.3,0.55]
[1750616646322,0.2819202,2190.2,2189.4,1.3087]
[1750616646524,8.3204202,2190.2,2189.4,5.32609965]
[1750616646884,10.0,2190.1,2189.5,4.56721402]
[1750616647323,8.094,2190.1,2189.5,5.11711305]
[1750616647622,8.094,2190.1,2189.5,6.21271555]
[1750616648025,10.0,2190.0,2189.5,6.21271555]
[1750616649725,10.0,2190.0,2189.6,4.5670442]
[1750616649915,10.0,2190.0,2189.5,6.2126729]
[1750616650092,10.0,2190.0,2189.6,4.56701323]
[1750616650294,10.0,2190.0,2189.6,5.72087508]
[1750616650599,10.0,2190.0,2189.7,4.56680524]
[1750616650862,10.0,2190.0,2189.6,5.72089157]
[1750616651012,7.8533,2190.1,2189.8,5.34471787]
[1750616651212,0.2254202,2190.2,2189.9,0.58947179]
[1750616651438,0.2254202,2190.2,2190.0,4.62860094]
[1750616651642,0.2254202,2190.2,2190.1,5.11600155]
[1750616651854,0.2254202,2190.2,2190.1,5.17850155]
[1750616652275,0.2254202,2190.2,2190.1,5.95670155]
[1750616652474,0.2254202,2190.2,2190.1,7.06792898]
[1750616653716,0.2254202,2190.2,2189.8,0.7701]
[1750616654155,0.2254202,2190.2,2189.8,5.39910607]
[1750616654656,0.2254202,2190.2,2189.9,4.56641708]
[1750616654845,0.2254202,2190.2,2189.8,0.8326]
[1750616655254,0.2254202,2190.2,2189.9,0.6125]
[1750616655446,0.2254202,2190.2,2190.0,4.62860612]
[1750616655643,0.2254202,2190.2,2190.1,5.54050317]
[1750616655856,0.2254202,2190.2,2190.1,5.60300317]
[1750616656533,0.2254202,2190.2,2190.1,1.03700162]
[1750616656737,0.2254202,2190.2,2190.1,5.60300317]
[1750616657454,0.2254202,2190.2,2190.1,6.15300317]
[1750616659778,0.2254202,2190.2,2190.1,6.91120317]
[1750616660480,0.2254202,2190.2,2190.1,9.20920317]
[1750616663458,0.2254202,2190.2,2190.1,19.65754695]
[1750616665312,0.2254202,2190.2,2190.1,6.80954695]
[1750616665517,0.2254202,2190.2,2190.1,16.80954695]
[1750616665692,0.2254202,2190.2,2190.1,17.35954695]
[1750616666277,0.2254202,2190.2,2190.1,16.91120317]
[1750616666492,0.2254202,2190.2,2190.1,5.54050317]
[1750616667140,0.2254202,2190.2,2190.1,6.09050317]
[1750616667775,0.2254202,2190.2,2190.1,6.90930317]
[1750616667971,0.2254202,2190.2,2190.1,7.37602773]
[1750616668706,2.149577,2191.5,2191.1,4.56381136]
[1750616668919,0.8358,2191.5,2191.2,0.99467258]
[1750616669426,0.8506,2191.7,2191.2,0.99467258]
[1750616669566,0.8506,2191.7,2191.2,5.55836574]
[1750616669771,0.8506,2191.7,2191.2,5.55834952]
[1750616669993,0.8506,2191.7,2191.2,0.99467258]
[1750616670386,0.8506,2191.7,2191.3,0.55584819]
[1750616670803,0.0581,2191.4,2190.4,0.8128]
[1750616671109,10.0,2191.2,2190.6,0.55]
[1750616671407,9.93645922,2191.3,2190.4,7.73510882]
[1750616671408,10.0,2191.3,2190.7,4.56465247]
[1750616671572,10.0581,2191.3,2190.8,0.45646525]
[1750616671768,10.0,2191.3,2190.8,5.57098643]
[1750616672083,10.0,2191.3,2190.8,5.63008643]
[1750616672283,0.0581,2191.4,2190.8,1.00646525]
[1750616672508,0.0581,2191.4,2190.8,3.30446525]
[1750616672810,0.0581,2191.4,2190.9,0.78691223]
[1750616673394,10.7925,2191.5,2190.9,5.41030227]
[1750616673581,10.7925,2191.5,2190.9,0.78691223]
[1750616673800,0.0581,2191.4,2190.8,0.45646525]
[1750616673988,0.11514157,2191.4,2190.8,0.45646525]
[1750616674300,9.93645922,2191.0,2190.8,0.45646525]
[1750616674504,10.0581,2191.2,2190.5,2.298]
[1750616675008,10.0581,2191.2,2190.6,0.55]
[1750616675196,10.0581,2191.2,2190.5,2.298]
[1750616676219,10.0581,2190.9,2190.1,12.76330162]
[1750616676510,10.0581,2190.9,2190.3,4.56556341]
[1750616676708,18.0481,2190.9,2190.4,0.45655634]
[1750616677121,10.0581,2190.9,2190.4,0.45655634]
[1750616677429,0.0581,2190.9,2190.4,0.45655634]
[1750616677724,8.7938,2191.1,2190.4,0.45655634]
[1750616677925,0.8619,2191.1,2190.5,0.55]
[1750616678092,0.8619,2191.1,2190.1,12.76330162]
[1750616678093,8.8519,2191.1,2190.3,0.55]
[1750616678292,8.8519,2191.1,2190.5,0.55]
[1750616678506,8.8519,2191.1,2190.4,0.51156916]
[1750616678677,0.0581,2190.9,2190.4,0.51156916]
[1750616678874,0.0581,2190.9,2190.1,12.76330162]
[1750616679079,0.0581,2190.8,2190.1,12.76330162]
[1750616679338,0.0581,2190.8,2190.1,11.94450162]
[1750616679339,0.7974,2190.7,2190.1,11.94450162]
[1750616679684,0.7974,2190.7,2190.2,5.11578439]
[1750616680000,0.7974,2190.7,2190.2,0.55]
[1750616680203,0.7974,2190.7,2190.3,1.24945016]
[1750616680406,0.0581,2190.6,2190.3,1.24945016]
[1750616680780,0.0581,2190.5,2190.1,11.94450162]
[1750616682388,0.05706246,2190.5,2190.1,0.97450162]
[1750616682601,0.0581,2190.4,2189.8,3.033]
[1750616683117,0.0581,2190.4,2189.8,2.249]
[1750616683318,10.8555,2190.3,2189.5,2.249]
[1750616683478,10.8555,2190.3,2189.5,6.8161559]
[1750616683683,10.8555,2190.3,2189.7,0.55]
[1750616684217,0.7974,2190.3,2189.7,0.55]
[1750616686241,0.8555,2190.3,2189.7,0.55]
[1750616686884,0.8555,2190.3,2189.9,0.55]
[1750616686885,1.372492,2190.3,2189.9,0.55]
[1750616687512,10.0,2190.4,2189.8,0.55]
[1750616687718,10.0,2190.4,2189.9,0.51167453]
[1750616687881,11.430473,2190.4,2189.9,0.51167453]
[1750616688089,9.99455922,2190.3,2189.6,1.22267117]
[1750616688397,10.0581,2190.1,2189.7,0.55]
[1750616688593,10.0581,2190.1,2189.6,0.55]
[1750616689000,0.0581,2190.0,2189.5,0.55]
[1750616689392,10.0,2190.1,2189.5,0.55]
[1750616689586,10.0,2190.1,2189.6,0.59014529]
[1750616690525,10.0581,2190.1,2189.6,0.59014529]
[1750616691210,10.0581,2190.1,2189.5,0.55]
[1750616691946,19.283974,2190.1,2189.5,0.55]
[1750616692451,10.0,2189.9,2189.5,0.55]
[1750616693146,10.0,2189.9,2189.2,4.56776521]
[1750616693348,10.0573,2189.9,2189.1,14.0856]
[1750616693549,0.7997,2189.8,2189.3,0.55]
[1750616693718,0.0573,2189.7,2189.3,0.55]
[1750616694114,0.7997,2189.8,2189.3,0.55]
[1750616694319,10.0573,2189.7,2189.3,0.55]
[1750616694949,10.0573,2189.7,2189.2,1.40856]
[1750616695153,0.0573,2189.6,2189.3,1.549416]
[1750616695325,10.0,2189.7,2189.3,1.549416]
[1750616695530,17.991,2189.7,2189.3,1.549416]
[1750616697616,10.0,2189.7,2189.3,1.549416]
[1750616699757,10.0573,2189.7,2189.3,1.549416]
[1750616700156,10.0573,2189.7,2189.4,0.61172863]
[1750616700842,10.0,2189.7,2189.4,0.61172863]
[1750616701364,10.017874,2190.1,2189.7,4.56665566]
[1750616701552,18.007874,2190.1,2189.5,0.55]
[1750616701734,18.065174,2190.1,2189.5,5.11724364]
[1750616702058,18.065174,2190.1,2189.6,5.13988557]
[1750616702255,10.075174,2190.1,2189.6,0.57289723]
[1750616702421,10.0573,2190.0,2189.6,0.57289723]
[1750616702952,10.0,2190.0,2189.7,4.56671313]
[1750616703357,10.0,2190.0,2189.8,0.55]
[1750616703555,10.0,2190.0,2189.9,0.51167131]
[1750616703856,10.0,2190.0,2189.7,0.55]
[1750616704221,10.0,2190.0,2189.7,5.1168164]
[1750616704848,10.0,2190.0,2189.7,0.55]
[1750616705758,10.0,2190.0,2189.7,5.1168157]
[1750616705934,10.0,2190.0,2189.7,0.55]
[1750616706134,10.0,2190.0,2189.8,0.56898239]
[1750616706658,0.8178,2190.4,2189.8,0.56898239]
[1750616706960,1.372373,2190.3,2189.9,5.11630383]
[1750616707326,1.372373,2190.3,2189.9,0.55]
[1750616707664,8.6711,2190.9,2189.9,0.55]
[1750616707866,16.6591,2190.9,2190.1,0.55]
[1750616708019,10.0,2190.8,2190.1,0.55]
[1750616708219,11.372002,2190.8,2190.1,0.55]
[1750616708661,1.372002,2190.8,2190.1,0.55]
[1750616709066,13.23727664,2190.6,2190.1,0.55]
[1750616709361,10.0,2190.2,2189.7,3.0204]
[1750616709863,10.0,2190.2,2189.8,0.55]
[1750616710256,10.0573,2190.2,2189.7,3.0204]
[1750616710463,0.0573,2190.1,2189.7,2.249]
[1750616710761,0.0573,2190.1,2189.8,0.55]
[1750616710986,0.0573,2190.1,2189.8,0.8299]
[1750616711464,17.988,2190.2,2189.8,0.2799]
[1750616711625,13.23727664,2190.2,2189.4,3.62912863]
[1750616711825,17.987,2190.1,2189.6,0.55]
[1750616712025,18.0443,2190.1,2189.5,0.55]
[1750616712849,18.0443,2190.1,2189.4,3.0794]
[1750616713184,18.0443,2190.1,2189.5,0.55]
[1750616713345,17.987,2190.1,2189.6,0.36294]
[1750616713545,0.0573,2190.0,2189.6,0.36294]
[1750616714080,10.0,2190.2,2189.8,0.55]
[1750616714252,10.0,2190.2,2189.8,0.612]
[1750616714983,23.29457664,2190.2,2189.6,0.36294]
[1750616715593,10.8713,2189.8,2189.4,2.246]
[1750616718189,12.24398,2189.8,2189.4,2.246]
[1750616718393,12.18668,2189.8,2189.4,2.246]
[1750616718687,12.24398,2189.8,2189.4,2.246]
[1750616720261,13.23727664,2189.6,2189.1,11.7979]
[1750616720591,10.0,2189.5,2189.1,10.969]
[1750616720884,10.0,2189.5,2189.2,0.55]
[1750616721082,10.0,2189.5,2189.1,0.612]
[1750616721389,10.0,2189.5,2189.0,2.246]
[1750616721390,10.0,2189.2,2189.0,2.246]
[1750616721570,10.0,2189.2,2189.0,2.61469]
[1750616721769,10.0,2189.5,2189.0,2.67669]
[1750616722390,10.8636,2189.6,2189.1,0.55]
[1750616722986,10.8636,2189.6,2189.1,0.6118]
[1750616723364,10.8636,2189.6,2189.1,0.55]
[1750616723546,10.8636,2189.6,2189.2,0.316469]
[1750616724648,10.0,2189.6,2189.2,0.378269]
[1750616725285,10.0,2189.6,2189.2,0.316469]
[1750616725489,0.0575,2189.5,2189.2,0.316469]
[1750616726928,0.0575,2189.5,2188.4,0.8254]
[1750616726929,0.8866,2189.1,2188.4,0.8254]
[1750616727194,0.8866,2189.1,2188.3,2.246]
[1750616727195,10.0,2188.6,2188.1,0.8254]
[1750616727419,18.8111,2188.6,2188.1,0.8254]
[1750616727571,18.8686,2188.6,2188.2,0.55]
[1750616727768,18.8686,2188.6,2188.1,0.8254]
[1750616728814,18.8686,2188.6,2187.9,0.8254]
[1750616729176,18.8686,2188.6,2188.0,0.30714]
[1750616729510,0.0575,2188.5,2188.0,0.30714]
[1750616729710,13.23727664,2188.4,2188.0,0.30714]
[1750616729876,13.23727664,2188.4,2188.1,18.0]
[1750616730278,13.29477664,2188.4,2188.1,18.0]
[1750616730611,17.981,2188.3,2188.1,18.0]
[1750616730822,18.0385,2188.3,2188.1,18.0]
[1750616731177,17.981,2188.3,2187.8,2.246]
[1750616731405,0.0575,2188.2,2187.8,2.246]
[1750616732111,10.0575,2188.0,2187.8,0.31332]
[1750616732311,10.0,2188.0,2187.4,3.0724]
[1750616732810,1.27904899,2188.4,2187.8,0.55]
[1750616733014,13.29477664,2188.7,2187.8,0.55]
[1750616733015,7.981,2188.5,2187.9,0.0618]
[1750616734011,7.981,2188.6,2188.2,0.55]
[1750616734181,10.0,2188.7,2188.3,0.0618]
[1750616734380,0.8291,2188.9,2188.3,0.0618]
[1750616734633,0.8291,2189.2,2188.7,0.6118]
[1750616734926,0.51517835,2189.4,2188.5,0.8254]
[1750616735081,14.06637664,2189.1,2188.5,3.0724]
[1750616735421,0.0575,2188.9,2188.5,0.8254]
[1750616735591,10.0,2189.0,2188.5,0.8872]
[1750616736378,10.0575,2188.7,2188.0,0.8254]
[1750616736579,7.98,2188.8,2188.2,4.56985244]
[1750616736930,10.0,2188.7,2188.3,0.45698524]
[1750616737628,17.8533,2188.7,2188.3,0.45698524]
[1750616737924,0.0575,2188.6,2188.3,0.45698524]
[1750616738084,0.0575,2188.6,2188.1,0.55]
[1750616738544,0.0575,2188.6,2188.1,5.12016322]
[1750616739522,17.8533,2188.7,2188.2,4.56991863]
[1750616740132,17.8533,2188.7,2188.3,0.55]
[1750616740780,17.8533,2188.7,2188.2,4.56985908]
[1750616740781,17.8533,2188.7,2188.2,0.55]
[1750616740982,17.8533,2188.7,2188.3,0.51200774]
[1750616742068,0.8003,2188.6,2188.3,0.51200774]
[1750616742225,0.8003,2188.6,2188.1,0.55]
[1750616742226,10.0,2188.5,2188.1,0.55]
[1750616742758,10.0,2188.5,2188.0,0.8254]
[1750616742958,7.8533,2188.4,2188.0,0.8254]
[1750616743759,0.0575,2188.3,2188.0,0.55]
[1750616743916,0.0575,2188.3,2188.1,0.2789]
[1750616744507,0.0575,2188.3,2187.9,2.239]
[1750616746229,7.8533,2188.4,2188.0,5.12028291]
[1750616746435,7.8533,2188.4,2188.0,0.55]
[1750616746636,7.8533,2188.4,2187.9,5.12052276]
[1750616746831,7.8533,2188.4,2187.9,4.57050959]
[1750616747153,7.8533,2188.4,2188.0,6.1159807]
[1750616747360,7.8533,2188.4,2188.2,0.55]
[1750616747733,7.8533,2188.4,2188.1,0.55]
[1750616748271,7.8533,2188.4,2188.1,5.12017294]
[1750616748587,7.8533,2188.4,2188.1,0.55]
[1750616748787,7.8533,2188.4,2188.2,0.61159083]
[1750616750333,7.8533,2188.4,2187.9,0.55]
[1750616750574,7.8533,2188.4,2187.9,5.12049894]
[1750616750781,7.8533,2188.4,2187.9,7.35949894]
[1750616751141,7.8533,2188.4,2188.0,0.0618]
[1750616751562,7.9108,2188.4,2187.9,0.55]
[1750616751763,0.0575,2188.3,2187.9,1.143603]
[1750616752159,0.0575,2188.3,2187.9,0.593603]
[1750616752386,8.6776,2188.4,2187.9,0.593603]
[1750616752542,0.061,2188.3,2187.7,0.0618]
[1750616752871,8.035,2188.3,2187.8,0.55]
[1750616753378,7.974,2188.3,2187.8,0.55]
[1750616753699,7.974,2188.3,2187.7,0.55]
[1750616753985,0.061,2188.2,2187.7,0.55]
[1750616754187,0.8188,2188.0,2187.5,2.239]
[1750616754354,0.8188,2188.0,2187.6,0.0596]
[1750616755679,0.8188,2188.0,2187.5,2.2986]
[1750616755983,0.8188,2188.0,2187.5,6.87001143]
[1750616756192,0.8188,2188.0,2187.6,1.14415321]
[1750616756666,0.8798,2188.0,2187.6,1.14415321]
[1750616757165,0.8798,2188.0,2187.6,5.71536773]
[1750616757366,0.8188,2188.0,2187.6,5.71536773]
[1750616758275,10.0,2188.1,2187.6,1.14415321]
[1750616758477,0.061,2187.9,2187.5,2.239]
[1750616758667,0.8798,2188.0,2187.5,6.81040762]
[1750616758869,0.8798,2188.0,2187.5,2.239]
[1750616759574,0.8188,2188.0,2187.5,2.239]
[1750616759791,0.061,2187.9,2187.5,4.60610095]
[1750616760102,0.8798,2188.0,2187.5,9.1775284]
[1750616760398,0.061,2187.9,2187.5,4.60610095]
[1750616761076,7.8533,2187.8,2187.3,10.974]
[1750616761408,7.8533,2187.8,2187.1,0.0596]
[1750616761409,0.061,2187.7,2187.1,6.81122441]
[1750616761703,15.8843,2187.7,2187.1,6.81122441]
[1750616761905,15.8843,2187.7,2187.2,1.21361922]
[1750616762466,15.8843,2187.7,2187.2,5.78557949]
[1750616762701,15.8843,2187.7,2187.2,1.27321922]
[1750616763084,7.8533,2187.7,2187.5,0.0596]
[1750616763702,7.8533,2187.7,2187.5,5.60625904]
[1750616764204,7.8533,2187.7,2187.6,4.5712196]
[1750616764501,7.8533,2187.7,2187.5,0.97530747]
[1750616764702,7.8533,2187.7,2187.0,2.9917]
[1750616765006,7.30111484,2187.7,2187.6,5.1808196]
[1750616765313,10.0,2187.9,2187.6,0.6096]
[1750616765474,10.0,2187.9,2187.6,0.55]
[1750616765669,10.0,2187.9,2187.7,0.51213245]
[1750616765873,10.0,2187.9,2187.2,0.783]
[1750616765874,10.0,2187.9,2187.5,0.55]
[1750616766083,10.0,2187.9,2187.5,5.18102634]
[1750616766702,10.0,2187.9,2187.6,4.57121388]
[1750616766872,10.0,2187.9,2187.6,4.57110149]
[1750616767986,10.0,2187.9,2187.5,5.12132751]
[1750616768187,10.0,2187.9,2187.6,0.96928759]
[1750616769108,7.968,2188.0,2187.6,0.96928759]
[1750616769609,7.30111484,2187.9,2187.6,0.96928759]
[1750616769794,7.30111484,2187.9,2187.7,0.55]
[1750616770015,7.30111484,2187.9,2187.7,5.12090798]
[1750616770308,7.30111484,2187.9,2187.8,0.69082956]
[1750616770485,7.30111484,2187.9,2187.7,0.55]
[1750616771113,7.30111484,2187.9,2187.7,5.12098399]
[1750616771329,7.30111484,2187.9,2187.7,5.18058399]
[1750616771620,7.30111484,2187.9,2187.8,4.57080171]
[1750616771826,0.8308,2188.6,2188.1,0.0596]
[1750616772123,0.8308,2188.6,2188.1,0.6096]
[1750616772433,10.8308,2188.6,2188.2,0.0596]
[1750616772639,0.061,2188.5,2188.2,1.27980534]
[1750616772784,0.05711528,2188.5,2187.9,5.12043836]
[1750616772989,0.05711528,2188.5,2188.0,2.23]
[1750616773190,12.45279359,2188.5,2188.0,2.23]
[1750616773390,12.39567831,2188.5,2188.0,2.23]
[1750616773624,12.39567831,2188.5,2188.1,4.62975501]
[1750616773794,12.39567831,2188.5,2188.2,0.6859755]
[1750616774227,12.39567831,2188.5,2188.0,6.80022154]
[1750616774424,12.39567831,2188.5,2188.1,0.0596]
[1750616778733,2.39567831,2188.5,2188.1,0.55]
[1750616779110,2.39567831,2188.5,2188.1,5.12015035]
[1750616779708,2.39567831,2188.5,2188.1,0.55]
[1750616779948,2.39567831,2188.5,2188.2,0.73502944]
[1750616780511,2.45667831,2188.5,2188.2,0.73502944]
[1750616780824,2.39567831,2188.5,2188.1,0.55]
[1750616781332,12.39567831,2188.5,2188.1,0.6096]
[1750616782438,12.39567831,2188.5,2188.1,5.17967182]
[1750616782641,12.39567831,2188.5,2188.2,0.0614]
[1750616784158,12.39567831,2188.5,2188.2,4.63130136]
[1750616784379,2.39567831,2188.5,2188.3,0.51813014]
[1750616784825,2.39567831,2188.5,2188.1,0.6114]
[1750616786161,2.39567831,2188.5,2188.1,5.18156303]
[1750616786869,2.39567831,2188.5,2188.1,0.55]
[1750616786870,0.0594,2188.4,2188.1,0.55]
[1750616787030,0.0594,2188.4,2187.8,0.8303]
[1750616787235,0.8329,2188.4,2187.9,6.79949512]
[1750616787435,0.8329,2188.4,2188.0,1.55827951]
[1750616788264,9.86798042,2188.4,2188.0,1.55827951]
[1750616789670,9.80858042,2188.4,2188.0,1.55827951]
[1750616789873,0.0594,2188.3,2188.0,1.55827951]
[1750616790362,0.0594,2188.3,2187.8,5.40104837]
[1750616790363,9.03508042,2188.2,2187.9,2.779]
[1750616790987,9.03508042,2188.2,2187.9,0.55]
[1750616791538,9.03508042,2188.0,2187.7,0.55]
[1750616792249,9.03508042,2188.0,2187.6,4.5710827]
[1750616792250,9.03508042,2188.0,2187.8,4.57079236]
[1750616792639,17.04448042,2188.2,2187.8,4.57079236]
[1750616792869,0.7735,2188.4,2187.9,5.02763855]
[1750616792870,9.80858042,2188.4,2187.9,5.02763855]
[1750616793173,0.7735,2188.4,2188.0,4.5703677]
[1750616793371,20.34467831,2188.5,2188.1,4.56999489]
[1750616793666,2.39567831,2188.5,2188.2,4.63135476]
[1750616793874,2.39567831,2188.5,2188.2,0.0614]
[1750616794073,2.39567831,2188.5,2188.2,0.80244943]
[1750616794381,2.39567831,2188.5,2188.2,5.37239932]
[1750616795096,2.39567831,2188.5,2188.2,0.80244943]
[1750616796375,2.229,2188.9,2188.2,0.80244943]
[1750616796376,0.8221,2189.0,2188.6,4.56903278]
[1750616796579,9.03508042,2189.5,2188.9,0.55]
[1750616796940,9.03508042,2189.3,2188.9,5.11833521]
[1750616798392,23.29879777,2189.6,2188.9,5.11833521]
[1750616798601,23.29879777,2189.6,2188.8,5.33821231]
[1750616798602,13.23939777,2189.3,2188.7,0.51190328]
[1750616798812,0.11650308,2189.2,2188.7,0.55]
[1750616799685,0.94000308,2189.2,2188.7,0.55]
[1750616799881,0.88060308,2189.2,2188.6,2.229]
[1750616800194,0.8235,2189.2,2188.7,0.55]
[1750616800409,0.8235,2189.2,2188.8,0.7347938]
[1750616801112,7.942,2189.4,2188.9,0.7919]
[1750616801310,7.942,2189.4,2188.9,0.8533]
[1750616801798,7.942,2189.4,2189.0,0.0614]
[1750616802882,0.8235,2189.5,2189.0,0.0614]
[1750616802883,0.8235,2189.5,2189.0,4.56825859]
[1750616803082,0.8829,2189.5,2189.1,0.99284756]
[1750616803279,0.8235,2189.5,2189.1,0.99284756]
[1750616803502,10.0,2189.6,2189.2,0.0614]
[1750616804204,10.0594,2189.6,2189.1,3.20784756]
[1750616804384,10.0594,2189.6,2189.1,3.26924756]
[1750616804584,10.0594,2189.6,2189.2,0.78374124]
[1750616807574,10.0594,2189.6,2189.1,2.2764]
[1750616809013,10.0,2189.6,2189.1,6.78301171]
[1750616809494,10.0,2189.6,2189.1,2.215]
[1750616809699,10.0594,2189.6,2189.1,2.215]
[1750616810636,10.0,2189.6,2189.2,0.55]
[1750616810936,10.0,2189.6,2189.3,0.2765]
[1750616812136,0.0594,2189.5,2189.3,0.2765]
[1750616812430,23.23939777,2189.6,2189.1,2.215]
[1750616812631,21.92799777,2190.1,2189.6,4.56693552]
[1750616812793,8.7479,2190.1,2189.6,0.55]
[1750616812986,7.91,2190.1,2189.8,0.55]
[1750616813294,7.91,2190.3,2189.9,0.0593]
[1750616813494,10.0,2190.2,2189.9,0.0593]
[1750616813821,0.7786,2190.4,2190.0,0.55]
[1750616814121,8.6878,2190.7,2190.2,5.33488257]
[1750616814429,0.8371,2190.9,2190.5,0.55]
[1750616814621,16.6761,2191.1,2190.5,5.11505445]
[1750616814917,1.372234,2191.0,2190.7,0.0593]
[1750616815126,1.372234,2191.0,2190.7,0.8285]
[1750616815320,10.0,2191.0,2190.7,0.7692]
[1750616815982,10.0,2191.0,2190.4,0.7692]
[1750616815983,0.05705177,2190.9,2190.4,0.7692]
[1750616816186,13.35574954,2190.9,2190.5,2.215]
[1750616816392,10.0593,2190.8,2190.4,0.7692]
[1750616816594,10.7778,2190.5,2189.9,0.7692]
[1750616816793,13.23939777,2190.0,2189.6,0.8034]
[1750616816986,13.23939777,2190.0,2189.6,0.7692]
[1750616817186,0.0593,2189.9,2189.3,2.215]
[1750616817415,13.23939777,2190.0,2189.5,0.55]
[1750616817614,0.0593,2189.9,2189.5,0.55]
[1750616818204,13.23939777,2190.0,2189.5,0.5842]
[1750616818405,13.29869777,2190.0,2189.5,0.0342]
[1750616818822,13.29869777,2190.0,2189.5,0.5842]
[1750616819022,13.29869777,2190.0,2189.5,1.46596869]
[1750616819219,10.7778,2190.1,2189.6,0.55]
[1750616819412,10.7778,2190.1,2189.6,0.5842]
[1750616819724,10.8371,2190.1,2189.6,0.5842]
[1750616819924,10.8371,2190.1,2189.6,1.47720416]
[1750616820309,0.7778,2190.1,2189.6,1.44300416]
[1750616820516,17.923,2190.2,2189.7,0.0342]
[1750616820690,17.9823,2190.2,2189.7,0.0342]
[1750616820896,17.923,2190.2,2189.7,0.0342]
[1750616821096,17.923,2190.2,2189.7,1.48421677]
[1750616821322,17.923,2190.2,2189.7,1.49301677]
[1750616821837,17.923,2190.2,2189.7,1.48421677]
[1750616822134,0.0593,2190.1,2189.7,0.7916]
[1750616822346,17.923,2190.2,2189.8,0.55]
[1750616822502,17.923,2190.2,2189.8,0.5588]
[1750616822698,15.45439777,2190.6,2189.8,0.5588]
[1750616822699,0.7661,2190.8,2189.9,2.214]
[1750616822950,8.7454,2191.1,2190.5,5.1151018]
[1750616823103,1.371864,2191.6,2190.8,0.7916]
[1750616823442,0.7661,2192.0,2191.2,0.0088]
[1750616823616,0.7661,2192.0,2191.1,1.3416]
[1750616823617,10.11633061,2191.9,2191.1,1.3416]
[1750616823946,10.11633061,2191.9,2190.8,10.0]
[1750616823947,0.05704037,2191.8,2191.0,0.55]
[1750616824111,0.11634037,2191.8,2191.2,0.55]
[1750616824315,0.05704037,2191.8,2191.3,0.51138707]
[1750616824538,0.7661,2192.0,2191.3,1.28078707]
[1750616824838,3.54228094,2192.4,2191.3,1.28078707]
[1750616824839,0.05703655,2191.9,2191.4,5.11321067]
[1750616825141,10.11633655,2192.2,2191.4,2.764]
[1750616825346,10.0593,2192.2,2191.5,4.56304892]
[1750616825553,0.05702848,2192.1,2191.6,0.73270489]
[1750616825709,0.11632848,2192.1,2191.6,0.73270489]
[1750616825905,0.05702848,2192.1,2191.6,0.74150489]
[1750616826109,0.7576,2192.3,2191.7,0.0088]
[1750616826342,0.81462653,2192.3,2191.7,5.12146318]
[1750616826505,10.81462653,2192.3,2191.8,0.51214632]